Cogmind - Beta 9.6 @@@ ROGUE MODE // 2020.05.27 @ 22:12:50 Player: pGoos Result: Destroyed by as-56226 with Assembled Rifle Performance ------------- Evolutions (0) 0 Regions Visited (2) 400 Robots Destroyed (7) 35 Value Destroyed (36) 36 Prototype IDs (0) 0 Alien Tech Used (0) 0 Bonus (0) 0 TOTAL SCORE: 471 Bonus ------- None Cogmind --------- Core Integrity 0/250 Matter 300/300 Energy 97/100 System Corruption 0% Temperature Cool (0) Movement Core (100) Ox1 Location -10/Mines Parts ------- > --- POWER (1) -------- (None) > --- PROPULSION (2) --- (None) > --- UTILITY (2) ------ Small Storage Unit > --- WEAPON (2) ------- (None) > --- INVENTORY (6) ---- Light Treads Light Treads Peak State ------------ > --- POWER ------------ Ion Engine > --- PROPULSION ------- Aluminum Leg Aluminum Leg > --- UTILITY ---------- Small Storage Unit > --- WEAPON ----------- EM Pulse Gun Light Assault Rifle > --- INVENTORY -------- Light Ion Engine Light Treads Light Treads Small Laser [Rating: 6] Favorites ----------- Power Ion Engine Engine Ion Engine Propulsion Aluminum Leg Leg Aluminum Leg Utility Small Storage Unit Storage Small Storage Unit Weapon Light Assault Rifle Energy Gun EM Pulse Gun Ballistic Gun Light Assault Rifle Build | -11 -10 -10 ------- Run | Scr Mat Min Slots Evolved . | . . . Power . | . . . Propulsion . | . . . Utility . | . . . Weapon . | . . . Parts Attached 14 | 6 5 3 Power 3 | 2 1 . Engine 3 | 2 1 . Core . | . . . Reactor . | . . . Propulsion 3 | 1 1 1 Treads . | . . . Leg 3 | 1 1 1 Wheel . | . . . Hover . | . . . Flight . | . . . Utility 1 | 1 . . Device . | . . . Storage 1 | 1 . . Processor . | . . . Hackware . | . . . Protection . | . . . Artifact . | . . . Weapon 7 | 2 3 2 Energy Gun 5 | 1 2 2 Energy Cannon . | . . . Ballistic Gun 2 | 1 1 . Ballistic Cannon . | . . . Launcher . | . . . Special Weapon . | . . . Impact Weapon . | . . . Slashing Weapon . | . . . Piercing Weapon . | . . . Special Melee Weapon . | . . . Unidentified Prototypes . | . . . Parts Lost 10 | . 3 7 Power 2 | . 1 1 Propulsion 2 | . . 2 Utility . | . . . Weapon 6 | . 2 4 Highest Loss Streak 7 | . 3 7 Average Slot Usage (%) 72 | . 74 69 Engine 12 | . 12 12 Leg 21 | . 23 20 Storage 14 | . 14 14 Energy Gun 3 | . 6 1 Ballistic Gun 19 | . 17 22 Naked Turns . | . . . Heaviest Build 12 | 12 12 9 Greatest Support 20 | 10 20 20 Greatest Overweight (x) 3 | 3 1 2 Average Overweight (x) . | 1 . . Largest Inventory Capacity 6 | 6 6 6 Average Capacity 5 | 5 6 6 Most Carried 5 | 5 5 3 Average Carried 3 | 3 3 2 Final Capacity 6 | 6 6 6 Final Carried 5 | 5 2 2 Class Distribution -------------------- 100% | Mutant Dominant Class ---------------- Mutant | -10/Materials Mutant | -10/Mines Resources | -11 -10 -10 ----------- Run | Scr Mat Min Matter Collected 325 | 218 38 69 Remotely . | . . . Salvage Created 159 | 61 50 48 Parts 10 | 3 7 . Haulers Intercepted . | . . . Recyclers Shooed 1 | . 1 . Parts Field Recycled . | . . . Retrieved Matter . | . . . Parts Self-Destructed . | . . . Prevented . | . . . Kills | -11 -10 -10 ------- Run | Scr Mat Min Combat Hostiles Destroyed 6 | . 3 3 Melee 1 | . . 1 Guns 5 | . 3 2 Classes Destroyed 3 | 1 1 1 Recycler 1 | 1 . . Swarmer 3 | . 3 . Assembled 3 | . . 3 Best Kill Streak 2 | 1 2 1 Combat Bots Only 2 | . 2 1 Max Kills in Single Turn 1 | 1 1 1 Gunslinging . | . . . Exploded . | . . . Melee 1 | . . 1 Uniques/NPCs Destroyed . | . . . Combat | -11 -10 -10 -------- Run | Scr Mat Min Damage Taken 943 | . 403 540 Core 260 | . 45 215 Absorbed by Shields . | . . . Core Remaining (%) 100 | 100 . . Volleys Fired 39 | 1 21 17 Largest 2 | 2 2 2 Hottest 60 | 60 60 40 Shots Fired 63 | 2 32 29 Gun 63 | 2 32 29 Cannon . | . . . Launcher . | . . . Special . | . . . Kinetic 48 | 1 23 24 Thermal 7 | . 7 . Explosive . | . . . Electromagnetic 8 | 1 2 5 Robot Hit Streak 6 | 1 6 5 Robot Miss Streak 5 | . 3 5 Penetration Max . | . . . Secondary Targets 1 | . 1 . Max Gunslinging Chain 1 | . 1 . Shots Hit Robots 36 | 1 18 17 Core Hits 18 | 1 6 11 Critical Hits . | . . . Critical Kills . | . . . Critical Parts Destroyed . | . . . Melee Attacks . | . . . Impact . | . . . Slashing . | . . . Piercing . | . . . Sneak Attacks . | . . . Combat Hostiles . | . . . Follow-up Attacks . | . . . Damage Inflicted 335 | 25 159 151 Guns 327 | 25 159 143 Cannons . | . . . Explosions . | . . . Melee . | . . . Ramming 8 | . . 8 Kinetic 218 | 10 113 95 Thermal 46 | . 46 . Explosive . | . . . Electromagnetic 63 | 15 . 48 Impact . | . . . Slashing . | . . . Piercing . | . . . Highest Corruption . | . . . Average Corruption . | . . . Corruption Purged . | . . . Overload Shots . | . . . Overflow Damage . | . . . Projectiles . | . . . Explosions . | . . . Melee . | . . . Knockbacks . | . . . Impact . | . . . Kinetic . | . . . Secondary . | . . . Self-Inflicted Damage 3 | . . 3 Shots . | . . . Rammed 4 | . . 4 Targets Rammed 4 | . . 4 Kicked . | . . . Crushed . | . . . Highest Temperature 40 | 20 40 . Average Temperature 24 | 15 25 . Received Heat Transfer . | . . . Siege Activations . | . . . Robots Corrupted . | . . . Combat Hostiles . | . . . Parts Fried . | . . . Impact Corruptions . | . . . Robots Melted . | . . . Combat Hostiles . | . . . Parts Melted . | . . . Heat Transferred 100 | . 100 . Parts Sabotaged . | . . . Parts Stolen . | . . . Parts Stripped . | . . . Power Chain Reactions . | . . . Missiles Intercepted . | . . . Alert | -11 -10 -10 ------- Run | Scr Mat Min Peak Influence 73 | 5 73 33 Average Influence 17 | 2 23 21 Maximum Alert Level . | . . . Low Security (%) 100 | 100 100 100 Level 1 . | . . . Level 2 . | . . . Level 3 . | . . . Level 4 . | . . . Level 5 . | . . . High Security . | . . . Max Security . | . . . Squads Dispatched 2 | . 2 . Investigation . | . . . Extermination . | . . . Reinforcement 2 | . 2 . Assault . | . . . Garrison . | . . . Intercept . | . . . Construction Impeded . | . . . Haulers Reinforced . | . . . Stealth | -11 -10 -10 --------- Run | Scr Mat Min Distress Signals 1 | . 1 . Communications Jammed . | . . . Distress Signals . | . . . Times Spotted 13 | . 7 6 Peak Tracking Total 5 | . 5 3 Tactical Retreats 2 | . . 2 Traps | -11 -10 -10 ------- Run | Scr Mat Min Traps Triggered 1 | . 1 . Indirectly . | . . . Trap Hack Attempts . | . . . Triggered . | . . . Disarmed . | . . . Reprogrammed . | . . . Reused . | . . . Traps Extracted . | . . . Installed . | . . . Triggered . | . . . Machines | -11 -10 -10 ---------- Run | Scr Mat Min Machines Disabled . | . . . Max in Single Turn . | . . . Machines Sabotaged . | . . . Garrisons Compromised . | . . . Overloaded Fab Kills . | . . . Fab Network Shutdowns . | . . . Hacking | -11 -10 -10 --------- Run | Scr Mat Min Machines Accessed . | . . . Terminals . | . . . Fabricators . | . . . Repair Stations . | . . . Recycling Units . | . . . Scanalyzers . | . . . Garrison Access . | . . . Total Hacks . | . . . Successful . | . . . Failed . | . . . Catastrophic . | . . . Database Lockouts . | . . . Manual . | . . . Terminals . | . . . Fabricators . | . . . Repair Stations . | . . . Recycling Units . | . . . Scanalyzers . | . . . Garrison Access . | . . . Terminal Hacks . | . . . Fabricator Hacks . | . . . Repair Station Hacks . | . . . Recycling Unit Hacks . | . . . Scanalyzer . | . . . Garrison Access Hacks . | . . . Unauthorized Hacks . | . . . Terminals . | . . . Fabricators . | . . . Repair Stations . | . . . Recycling Units . | . . . Scanalyzers . | . . . Garrison Access . | . . . Data Cores Recovered . | . . . Used . | . . . Hacking Detections . | . . . Full Trace Events . | . . . Feedback Events . | . . . Feedback Blocked . | . . . Robot Schematics Acquired . | . . . Robots Built . | . . . Matter . | . . . Time . | . . . Total Robot Build Rating . | . . . Part Schematics Acquired . | . . . Parts Built . | . . . Matter . | . . . Time . | . . . Total Part Build Rating . | . . . Parts Repaired . | . . . Time . | . . . Parts Recycled . | . . . Recycled Matter . | . . . Retrieved Matter . | . . . Retrieved Components . | . . . Parts Scanalyzed . | . . . Part Schematics Acquired . | . . . Parts Damaged . | . . . Bothacking | -11 -10 -10 ------------ Run | Scr Mat Min Used RIF Installer . | . . . Robots Hacked . | . . . Non-combat . | . . . Combat . | . . . Robot Hacks Applied . | . . . Relay Couplers Released . | . . . Robots Rewired . | . . . Allies Hacked . | . . . Hacks Repelled . | . . . Allies | -11 -10 -10 -------- Run | Scr Mat Min Total Allies . | . . . Largest Group . | . . . Highest-Rated Group . | . . . Highest-Rated Ally . | . . . Total Orders . | . . . Ally Attacks . | . . . Total Damage . | . . . Kills . | . . . Allies Corrupted . | . . . Allies Melted . | . . . Intel | -11 -10 -10 ------- Run | Scr Mat Min Robot Analysis Total . | . . . Derelict Logs Recovered . | . . . Drone Launches . | . . . Drone Recoveries . | . . . Exploration | -11 -10 -10 ------------- Run | Scr Mat Min Turns Passed 381 | 97 149 135 Spaces Moved 194 | 53 70 71 Core 19 | 15 . 4 Treads . | . . . Legs 175 | 38 70 67 Wheels . | . . . Hover . | . . . Flight . | . . . Fastest Speed 50 | 50 120 100 Average Speed 133 | 153 132 119 Slowest Speed 200 | 200 150 150 Overloaded Moves . | . . . Propulsion Burnouts . | . . . Robots Hopped . | . . . Cave-ins Triggered . | . . . Exploration Rate (%) 15 | 3 20 22 Regions Visited 2 Branch Regions 1 Pre-discovered Areas . | . . . Known Exits Taken . | . . . Unknown Exits Taken 2 | 1 1 . Scrap Searched 1 | . . 1 Spaces Dug . | . . . Terrain Destroyed . | . . . Melee . | . . . Projectile . | . . . AOE . | . . . Actions | -11 -10 -10 --------- Run | Scr Mat Min Total 258 | 64 98 96 Wait 3 | 1 2 . Move 192 | 52 69 71 Hop . | . . . Pick Up 6 | 4 1 1 Fast Attach 7 | 5 . 2 Attach 5 | . 4 1 Detach . | . . . Swap 2 | 1 1 . Drop . | . . . Fire 39 | 1 21 17 Melee . | . . . Ram 4 | . . 4 Kick . | . . . Crush . | . . . Escape Stasis . | . . . Rewire . | . . . Trap . | . . . Miscellaneous . | . . . Route ------- -11/Scrapyard -10/Materials -10/Mines History --------- Turn | Location | Event 16 | -11/Scrapyard | Discovered new exit (range 16) 98 | -11/Scrapyard | Entered Materials 220 | -10/Materials | Lost 3 parts (1p2w) 241 | -10/Materials | Discovered new exit (range 6) 247 | -10/Materials | Entered Mines 254 | -10/Mines | Assembled infested the area 317 | -10/Mines | Build established: Mutant 329 | -10/Mines | Core integrity fell below 50% 373 | -10/Mines | Core integrity fell below 20% 382 | -10/Mines | Destroyed by as-56226 with Assembled Rifle Last Messages --------------- Acquired Aluminum Leg. Aluminum Leg destroyed. as-42282 destroyed. Acquired 15 matter. Lgt. Assault Rifle destroyed. Searching scrap... Found 36 Matter. Found Terrain Scanner. Found EM Pulse Gun. Acquired 36 matter. Acquired EM Pulse Gun. Aluminum Leg destroyed. EM Pulse Gun destroyed. Acquired EM Pulse Gun. Lgt. Ion Engine destroyed. EM Pulse Gun destroyed. as-33538 IFF system glitched. Slammed into as-33538. as-33538 destroyed. Acquired 5 matter. Map ----- +----------------------------------------------------+ | ??# """ #????????????????????????????????? | | ??# """ ######???????????????????????????? | | ??# #???????????????????????????? | | ??# """ ### #???????????????????????????? | | ??# """ #?# #??????####?????????????????? | | ??# """ #?# #??????# ##????????????????? | | ??# #?# #??????# #????????????????? | | ??########?# #??????# ##???????????????? | | ???????????# #??????# #???????????????? | | ???????????# #??????## #???????????????? | | ???????????# ######### #???####????????? | | ???????????# #### ##???????? | | ???????????# ######### ## " ##??????? | | ???????????# #???????## ##?????? | | ???????????# #????????### ##????? | | ???????????# % ??????????## ####?? | | ??????????## ??????????## #?? | | ??????????# ??????????# #? | | ??????????# ??????###?# ### ##? | | ???????????# ????## ### ##??? ##?? | | ???????????# #???# ### ##???????#??? | | ???????????# #?## ## ###???????????? | | ???????????## ## #?????????????? | | ???????????## ! ### #?????????????? | | ??????????## % #?# ????????????? | | ??????????# @ #?### #???????????? | | ??????????#### ##???? #???????????? | | ?????????????# ##??????#???????????? | | ?????????????# a ##???????????????????? | | ????????????# #????????????????????? | | ???????????# ????????????????????? | | ???????????# ???????????????????? | | ???????????# ##???????????????????? | | ???????????## #####????????????????????? | | ????????????## ?????????????????????????? | | ?????????????## a?????????????????????????? | | ??????????????# ?????????????????????????? | | ??????????????# a?????????????????????????? | | ??????????????# ?????????????????????????? | | ??????????????# ??????????????????????????? | | ??????????????????????????????????????????? | | ??????????????????????????????????????????? | | ??????????????????????????????????????????? | | ??????????????????????????????????????????? | | ??????????????????????????????????????????? | | ??????????????????????????????????????????? | | ??????????????????????????????????????????? | | ??????????????????????????????????????????? | | ??????????????????????????????????????????? | | ??????????????????????????????????????????? | +----------------------------------------------------+ Best States ------------- Heat Dissipation 25 Energy Generation 10 Energy Capacity 250 Matter Stores 292 Matter Capacity 300 Sight Range 16 Terrain Scan Density 10 Evasion (%) 40 Item Schematics ----------------- None Robot Schematics ------------------ None Fabricated ------------ Nothing Alien Tech Used ----------------- None Achievements -------------- None Challenges ------------ None Game ------ Seed BiometalOmegaAirjet Manual? 0 Play Time 00:06:50 Cumulative 10.2 hours Start 2020.05.27 @ 21:58:59 End 2020.05.27 @ 22:12:50 Sessions 1 Manual Loads 0 Difficulty Rogue Special Mode None Game No. 17 Rogue 17 Adventurer 0 Explorer 0 Win Type - Total 0 Types 0/0/0/0/0/0/0 Lore% 15 Gallery% 16 Achievement% 16 Wizard Run 0 Options --------- ASCII 0 Keyboard 0 Movement Mouse Keybinds 0 Fullscreen 2 Font 24/Terminus Map View 113x50 Tactical HUD 0 Map Filters NONE Filters NONE Steam 1 RUN: 8e6b0845-73db-4027-8687-35da8a190e02